[Event "*** SCC Grand Prix: Titled Tuesday Blitz"]
[Site "Chess.com"]
[Date "2020.08.11"]
[Round "8"]
[White "BursaBBSatranc"]
[Black "Sanyura"]
[Result "0-1"]
[WhiteElo "2507"]
[BlackElo "2415"]
[TimeControl "180+1"]
[EndTime "11:34:09 PDT"]
[Termination "Sanyura won on time"]

1. d4 {[%clk 0:03:00.9]} 1... Nf6 {[%clk 0:02:55.6]} 2. Bf4 {[%clk 0:02:56.3]}
2... c5 {[%clk 0:02:54.1]} 3. e3 {[%clk 0:02:56.4]} 3... d5 {[%clk 0:02:53.3]}
4. c3 {[%clk 0:02:55.6]} 4... Nc6 {[%clk 0:02:53.3]} 5. Nf3 {[%clk 0:02:55.7]}
5... g6 {[%clk 0:02:53.6]} 6. Nbd2 {[%clk 0:02:55.6]} 6... Bg7 {[%clk
0:02:53.7]} 7. h3 {[%clk 0:02:55.8]} 7... O-O {[%clk 0:02:52.8]} 8. Be2 {[%clk
0:02:49]} 8... c4 {[%clk 0:02:52.8]} 9. b3 {[%clk 0:02:40.3]} 9... Ne4 {[%clk
0:02:44.1]} 10. Nxe4 {[%clk 0:02:26.1]} 10... dxe4 {[%clk 0:02:45]} 11. Nd2
{[%clk 0:02:25.6]} 11... cxb3 {[%clk 0:02:44.4]} 12. axb3 {[%clk 0:02:16.8]}
12... e5 {[%clk 0:02:45.3]} 13. Bh2 {[%clk 0:02:15.9]} 13... f5 {[%clk
0:02:43.2]} 14. O-O {[%clk 0:02:13.2]} 14... Kh8 {[%clk 0:02:40.6]} 15. Nc4
{[%clk 0:01:43.3]} 15... exd4 {[%clk 0:02:05]} 16. cxd4 {[%clk 0:01:41.1]} 16...
f4 {[%clk 0:02:04.9]} 17. Bg4 {[%clk 0:01:37.9]} 17... f3 {[%clk 0:02:02.7]} 18.
Bxc8 {[%clk 0:01:34.5]} 18... Rxc8 {[%clk 0:02:03.6]} 19. Nd6 {[%clk 0:01:15.1]}
19... Qg5 {[%clk 0:02:02.6]} 20. Bg3 {[%clk 0:01:15.2]} 20... fxg2 {[%clk
0:01:45.1]} 21. Kxg2 {[%clk 0:01:16.1]} 21... Rcd8 {[%clk 0:01:44.3]} 22. Qg4
{[%clk 0:00:52.7]} 22... Qd5 {[%clk 0:01:40.5]} 23. Nxb7 {[%clk 0:00:40.3]}
23... h5 {[%clk 0:01:08.9]} 24. Qe2 {[%clk 0:00:28.6]} 24... Nxd4 {[%clk
0:01:04.2]} 25. exd4 {[%clk 0:00:22.5]} 25... Qxb7 {[%clk 0:00:59.3]} 26. Ra6
{[%clk 0:00:19]} 26... e3+ {[%clk 0:00:56.1]} 27. Kh2 {[%clk 0:00:18.2]} 27...
h4 {[%clk 0:00:42]} 28. Bxh4 {[%clk 0:00:15]} 28... Rxd4 {[%clk 0:00:41.4]} 29.
Bg3 {[%clk 0:00:12.8]} 29... Rd2 {[%clk 0:00:40.1]} 30. Qc4 {[%clk 0:00:04.9]}
30... e2 {[%clk 0:00:35]} 31. Re1 {[%clk 0:00:04.1]} 31... Rd1 {[%clk
0:00:17.6]} 32. Qh4+ {[%clk 0:00:03.4]} 32... Kg8 {[%clk 0:00:17.2]} 33. Qc4+
{[%clk 0:00:03.4]} 33... Rf7 {[%clk 0:00:17.5]} 0-1

[Event "*** SCC Grand Prix: Titled Tuesday Blitz"]
[Site "Chess.com"]
[Date "2020.08.11"]
[Round "8"]
[White "Lion-Al-Messi"]
[Black "Andrii_Prydun"]
[Result "1-0"]
[WhiteElo "2506"]
[BlackElo "2358"]
[TimeControl "180+1"]
[EndTime "11:34:09 PDT"]
[Termination "Lion-Al-Messi won on time"]

1. e4 {[%clk 0:03:00.9]} 1... d5 {[%clk 0:02:59.7]} 2. exd5 {[%clk 0:03:00.7]}
2... Qxd5 {[%clk 0:02:59.6]} 3. Nc3 {[%clk 0:03:00.3]} 3... Qd6 {[%clk
0:02:59.9]} 4. d4 {[%clk 0:02:58]} 4... Nf6 {[%clk 0:02:57.4]} 5. Nf3 {[%clk
0:02:58.3]} 5... c6 {[%clk 0:02:57.2]} 6. Ne5 {[%clk 0:02:58.8]} 6... Nbd7
{[%clk 0:02:56]} 7. Bf4 {[%clk 0:02:58.7]} 7... Nd5 {[%clk 0:02:55.6]} 8. Nxd5
{[%clk 0:02:55.3]} 8... Qxd5 {[%clk 0:02:55.4]} 9. Qd2 {[%clk 0:02:33]} 9...
Nxe5 {[%clk 0:02:38.2]} 10. Bxe5 {[%clk 0:02:31.1]} 10... Bf5 {[%clk 0:02:37.8]}
11. f3 {[%clk 0:02:25.2]} 11... f6 {[%clk 0:02:32.1]} 12. Bg3 {[%clk 0:02:20.6]}
12... O-O-O {[%clk 0:02:31.8]} 13. Qf4 {[%clk 0:02:04.6]} 13... Rd6 {[%clk
0:01:55.5]} 14. O-O-O {[%clk 0:02:01.3]} 14... Qa5 {[%clk 0:01:34.1]} 15. Bc4
{[%clk 0:01:55.3]} 15... h5 {[%clk 0:01:12.7]} 16. Be1 {[%clk 0:01:42.3]} 16...
g5 {[%clk 0:01:04]} 17. Qxd6 {[%clk 0:01:28.6]} 17... Qxe1 {[%clk 0:00:47.1]}
18. Qxc6+ {[%clk 0:01:23.4]} 18... bxc6 {[%clk 0:00:46]} 19. Rhxe1 {[%clk
0:01:24.3]} 19... Kd7 {[%clk 0:00:42]} 20. d5 {[%clk 0:01:22.5]} 20... c5 {[%clk
0:00:40.6]} 21. Bd3 {[%clk 0:01:19.7]} 21... Bxd3 {[%clk 0:00:35.8]} 22. Rxd3
{[%clk 0:01:20.6]} 22... Bh6 {[%clk 0:00:34.3]} 23. Ra3 {[%clk 0:01:17.8]} 23...
g4+ {[%clk 0:00:33]} 24. Kb1 {[%clk 0:01:17.8]} 24... Re8 {[%clk 0:00:31.1]} 25.
Rxa7+ {[%clk 0:01:17]} 25... Kd6 {[%clk 0:00:31.1]} 26. c4 {[%clk 0:01:15.3]}
26... e5 {[%clk 0:00:27.3]} 27. dxe6 {[%clk 0:01:13.3]} 27... gxf3 {[%clk
0:00:26.4]} 28. gxf3 {[%clk 0:01:13]} 28... Bf4 {[%clk 0:00:25.5]} 29. Rd1+
{[%clk 0:01:03.1]} 29... Kc6 {[%clk 0:00:23.8]} 30. e7 {[%clk 0:00:59]} 30...
Bc7 {[%clk 0:00:21.8]} 31. Ra6+ {[%clk 0:00:57]} 31... Bb6 {[%clk 0:00:17.6]}
32. Re1 {[%clk 0:00:56.7]} 32... Kb7 {[%clk 0:00:15.5]} 33. Rxb6+ {[%clk
0:00:53.2]} 33... Kxb6 {[%clk 0:00:15.5]} 34. a4 {[%clk 0:00:53.3]} 34... Ka5
{[%clk 0:00:14.5]} 35. b3 {[%clk 0:00:52.9]} 35... f5 {[%clk 0:00:14.3]} 36. f4
{[%clk 0:00:52.7]} 36... h4 {[%clk 0:00:13.8]} 37. h3 {[%clk 0:00:52.9]} 37...
Kb4 {[%clk 0:00:13.6]} 38. Kb2 {[%clk 0:00:52.9]} 38... Ka5 {[%clk 0:00:08.2]}
39. Ka3 {[%clk 0:00:52.6]} 39... Ka6 {[%clk 0:00:08.1]} 40. b4 {[%clk
0:00:52.2]} 40... Kb7 {[%clk 0:00:08.4]} 41. bxc5 {[%clk 0:00:51.1]} 41... Ka6
{[%clk 0:00:07.7]} 42. Kb4 {[%clk 0:00:49.6]} 42... Rb8+ {[%clk 0:00:07.4]} 43.
Kc3 {[%clk 0:00:49.3]} 43... Re8 {[%clk 0:00:08.3]} 44. Re6+ {[%clk 0:00:48.8]}
44... Ka5 {[%clk 0:00:08.4]} 45. c6 {[%clk 0:00:48.2]} 45... Ka6 {[%clk
0:00:05.7]} 46. c5 {[%clk 0:00:47.3]} 46... Ka5 {[%clk 0:00:05.9]} 47. c7 {[%clk
0:00:47.2]} 47... Rb8 {[%clk 0:00:01.6]} 48. cxb8=Q {[%clk 0:00:45.6]} 1-0

[Event "*** SCC Grand Prix: Titled Tuesday Blitz"]
[Site "Chess.com"]
[Date "2020.08.11"]
[Round "8"]
[White "Ind1anStar"]
[Black "lelajavakhishvili"]
[Result "0-1"]
[WhiteElo "2508"]
[BlackElo "2431"]
[TimeControl "180+1"]
[EndTime "11:34:10 PDT"]
[Termination "lelajavakhishvili won on time"]

1. c4 {[%clk 0:03:00.9]} 1... e6 {[%clk 0:02:58.3]} 2. Nf3 {[%clk 0:03:00.5]}
2... d5 {[%clk 0:02:58.3]} 3. e3 {[%clk 0:03:00.9]} 3... Nf6 {[%clk 0:02:56.9]}
4. Nc3 {[%clk 0:02:58.3]} 4... c5 {[%clk 0:02:53.4]} 5. cxd5 {[%clk 0:02:57.8]}
5... exd5 {[%clk 0:02:53.4]} 6. d4 {[%clk 0:02:56.8]} 6... Nc6 {[%clk
0:02:53.4]} 7. Bb5 {[%clk 0:02:54.2]} 7... Bd7 {[%clk 0:02:47.5]} 8. O-O {[%clk
0:02:53.3]} 8... a6 {[%clk 0:02:34]} 9. Be2 {[%clk 0:02:39.5]} 9... Be6 {[%clk
0:02:28.4]} 10. Ne5 {[%clk 0:02:30.4]} 10... Nxe5 {[%clk 0:01:58.5]} 11. dxe5
{[%clk 0:02:29.9]} 11... Nd7 {[%clk 0:01:45.8]} 12. f4 {[%clk 0:02:07.7]} 12...
d4 {[%clk 0:01:45.5]} 13. exd4 {[%clk 0:01:30.6]} 13... cxd4 {[%clk 0:01:44.9]}
14. Ne4 {[%clk 0:01:30.9]} 14... Nc5 {[%clk 0:01:21.2]} 15. Bf3 {[%clk
0:01:13.9]} 15... Qd7 {[%clk 0:01:17.4]} 16. Bd2 {[%clk 0:00:48.6]} 16... d3
{[%clk 0:01:04.6]} 17. Be3 {[%clk 0:00:41.1]} 17... Rc8 {[%clk 0:00:51.7]} 18.
Rc1 {[%clk 0:00:36.2]} 18... Nxe4 {[%clk 0:00:40.3]} 19. Rxc8+ {[%clk
0:00:35.7]} 19... Qxc8 {[%clk 0:00:40.5]} 20. Bxe4 {[%clk 0:00:36.1]} 20... Bc5
{[%clk 0:00:38.1]} 21. Bxc5 {[%clk 0:00:23.6]} 21... Qxc5+ {[%clk 0:00:37.9]}
22. Kh1 {[%clk 0:00:24.2]} 22... b5 {[%clk 0:00:23.3]} 23. Bxd3 {[%clk
0:00:17.5]} 23... O-O {[%clk 0:00:19.6]} 24. Qb1 {[%clk 0:00:15.9]} 24... h6
{[%clk 0:00:18.3]} 25. f5 {[%clk 0:00:14.6]} 25... Bd5 {[%clk 0:00:17.8]} 26. f6
{[%clk 0:00:13.3]} 26... Qe3 {[%clk 0:00:14.5]} 27. fxg7 {[%clk 0:00:11.2]}
27... Kxg7 {[%clk 0:00:15.4]} 28. Qe1 {[%clk 0:00:08.7]} 28... Qxd3 {[%clk
0:00:13.6]} 29. Qh4 {[%clk 0:00:08.6]} 29... Qg6 {[%clk 0:00:13]} 30. Qf2 {[%clk
0:00:06.2]} 30... Rc8 {[%clk 0:00:12.2]} 31. Rg1 {[%clk 0:00:02.5]} 31... Rc2
{[%clk 0:00:11.5]} 0-1

[Event "*** SCC Grand Prix: Titled Tuesday Blitz"]
[Site "Chess.com"]
[Date "2020.08.11"]
[Round "8"]
[White "anon569"]
[Black "XDPS"]
[Result "0-1"]
[WhiteElo "2341"]
[BlackElo "2632"]
[TimeControl "180+1"]
[EndTime "11:34:12 PDT"]
[Termination "XDPS won by checkmate"]

1. e4 {[%clk 0:02:58.4]} 1... e5 {[%clk 0:02:54.1]} 2. Nf3 {[%clk 0:02:56.6]}
2... Nc6 {[%clk 0:02:54]} 3. Bb5 {[%clk 0:02:56.8]} 3... a6 {[%clk 0:02:53.9]}
4. Ba4 {[%clk 0:02:57]} 4... d6 {[%clk 0:02:54.5]} 5. d4 {[%clk 0:02:52.1]} 5...
b5 {[%clk 0:02:51]} 6. Bb3 {[%clk 0:02:51.3]} 6... Nxd4 {[%clk 0:02:51.5]} 7.
Nxd4 {[%clk 0:02:50.8]} 7... exd4 {[%clk 0:02:52.4]} 8. Qxd4 {[%clk 0:02:50.3]}
8... c5 {[%clk 0:02:50.8]} 9. Qd5 {[%clk 0:02:44.4]} 9... Be6 {[%clk 0:02:48.3]}
10. Qc6+ {[%clk 0:02:44.1]} 10... Bd7 {[%clk 0:02:48.3]} 11. Qd5 {[%clk
0:02:39.4]} 11... c4 {[%clk 0:02:48.4]} 12. Bxc4 {[%clk 0:02:31.8]} 12... bxc4
{[%clk 0:02:47.7]} 13. Qxc4 {[%clk 0:02:32.7]} 13... Nf6 {[%clk 0:02:45.3]} 14.
Nc3 {[%clk 0:02:32]} 14... Be7 {[%clk 0:02:44.3]} 15. O-O {[%clk 0:02:31.7]}
15... O-O {[%clk 0:02:44.9]} 16. Rd1 {[%clk 0:02:31.2]} 16... Be6 {[%clk
0:02:41.1]} 17. Qd4 {[%clk 0:02:27.1]} 17... Qa5 {[%clk 0:02:37.9]} 18. Bf4
{[%clk 0:02:21.2]} 18... Rfd8 {[%clk 0:02:37]} 19. Rd3 {[%clk 0:01:50.5]} 19...
Ng4 {[%clk 0:02:28.5]} 20. Rg3 {[%clk 0:01:36.5]} 20... Bf6 {[%clk 0:02:15.4]}
21. Qd2 {[%clk 0:01:29.3]} 21... Ne5 {[%clk 0:02:13.2]} 22. Bg5 {[%clk
0:01:19.9]} 22... Bxg5 {[%clk 0:01:46.5]} 23. Qxg5 {[%clk 0:01:18.1]} 23... g6
{[%clk 0:01:39.6]} 24. f4 {[%clk 0:01:04.5]} 24... Qc5+ {[%clk 0:01:38.3]} 25.
Kh1 {[%clk 0:01:01.2]} 25... Nd7 {[%clk 0:00:26.1]} 26. f5 {[%clk 0:00:58.9]}
26... Bc4 {[%clk 0:00:24.2]} 27. b3 {[%clk 0:00:48.1]} 27... Bb5 {[%clk
0:00:13]} 28. Nd5 {[%clk 0:00:47.7]} 28... Re8 {[%clk 0:00:10.8]} 29. Rh3 {[%clk
0:00:32.2]} 29... Rxe4 {[%clk 0:00:06.4]} 30. fxg6 {[%clk 0:00:20.4]} 30... hxg6
{[%clk 0:00:05.2]} 31. Ne7+ {[%clk 0:00:18.5]} 31... Rxe7 {[%clk 0:00:04.7]} 32.
Qxe7 {[%clk 0:00:17.8]} 32... Qe5 {[%clk 0:00:05.3]} 33. Qh4 {[%clk 0:00:16.8]}
33... Qxa1+ {[%clk 0:00:05.3]} 34. Qe1 {[%clk 0:00:15.3]} 34... Qxe1# {[%clk
0:00:06.2]} 0-1

[Event "*** SCC Grand Prix: Titled Tuesday Blitz"]
[Site "Chess.com"]
[Date "2020.08.11"]
[Round "8"]
[White "jlandaw"]
[Black "FedaMaster"]
[Result "0-1"]
[WhiteElo "2508"]
[BlackElo "2417"]
[TimeControl "180+1"]
[EndTime "11:34:16 PDT"]
[Termination "FedaMaster won by resignation"]

1. e4 {[%clk 0:03:00.9]} 1... g6 {[%clk 0:02:59.7]} 2. Nc3 {[%clk 0:03:00.8]}
2... Bg7 {[%clk 0:02:59.5]} 3. g3 {[%clk 0:03:01.4]} 3... c5 {[%clk 0:02:54.4]}
4. Bg2 {[%clk 0:03:01.6]} 4... Nc6 {[%clk 0:02:54.8]} 5. d3 {[%clk 0:03:02.2]}
5... d6 {[%clk 0:02:55.2]} 6. f4 {[%clk 0:03:02.4]} 6... e6 {[%clk 0:02:54.9]}
7. Nf3 {[%clk 0:03:02.6]} 7... Nge7 {[%clk 0:02:55.2]} 8. O-O {[%clk 0:03:03.1]}
8... Nd4 {[%clk 0:02:55.2]} 9. e5 {[%clk 0:03:02.6]} 9... Nxf3+ {[%clk
0:02:39.6]} 10. Qxf3 {[%clk 0:03:02.3]} 10... d5 {[%clk 0:02:39.9]} 11. Nb5
{[%clk 0:02:55.6]} 11... O-O {[%clk 0:02:37.3]} 12. Nd6 {[%clk 0:02:50.5]} 12...
Nf5 {[%clk 0:02:06.5]} 13. Nxf5 {[%clk 0:02:23.8]} 13... gxf5 {[%clk 0:02:07.4]}
14. Kh1 {[%clk 0:02:05.5]} 14... f6 {[%clk 0:02:04.8]} 15. exf6 {[%clk
0:01:59.7]} 15... Bxf6 {[%clk 0:02:04.2]} 16. Re1 {[%clk 0:01:59.4]} 16... a5
{[%clk 0:01:49.4]} 17. c3 {[%clk 0:01:53.9]} 17... b5 {[%clk 0:01:37]} 18. Be3
{[%clk 0:01:52.3]} 18... Qb6 {[%clk 0:01:32.3]} 19. Qf2 {[%clk 0:01:47.9]} 19...
Be7 {[%clk 0:01:21.3]} 20. b4 {[%clk 0:01:44.5]} 20... axb4 {[%clk 0:01:21]} 21.
cxb4 {[%clk 0:01:44.9]} 21... Ra3 {[%clk 0:01:16.4]} 22. Bxc5 {[%clk 0:01:33.7]}
22... Bxc5 {[%clk 0:01:14.8]} 23. bxc5 {[%clk 0:01:34.6]} 23... Qc6 {[%clk
0:01:14.2]} 24. Qd4 {[%clk 0:01:34.4]} 24... Bd7 {[%clk 0:01:11]} 25. Re2 {[%clk
0:01:28.1]} 25... Rfa8 {[%clk 0:01:00.6]} 26. g4 {[%clk 0:01:12.7]} 26... R3a4
{[%clk 0:00:56]} 27. Qe5 {[%clk 0:01:08.1]} 27... Rf8 {[%clk 0:00:49.5]} 28. g5
{[%clk 0:00:56.3]} 28... Qxc5 {[%clk 0:00:46.7]} 29. h4 {[%clk 0:00:37.7]} 29...
Qd4 {[%clk 0:00:46.1]} 30. Rc1 {[%clk 0:00:30.5]} 30... Qxf4 {[%clk 0:00:43.1]}
31. Rc7 {[%clk 0:00:30.2]} 31... Qxe5 {[%clk 0:00:39.7]} 32. Rxe5 {[%clk
0:00:31.1]} 32... Rxh4+ {[%clk 0:00:40]} 33. Kg1 {[%clk 0:00:31.2]} 33... Rd8
{[%clk 0:00:34.8]} 34. Kf2 {[%clk 0:00:24.3]} 34... Rg4 {[%clk 0:00:26.1]} 35.
Bf3 {[%clk 0:00:19.8]} 35... Rxg5 {[%clk 0:00:26.4]} 36. Ke3 {[%clk 0:00:20.4]}
36... Kf8 {[%clk 0:00:25.3]} 37. Kd4 {[%clk 0:00:20.1]} 37... Rg3 {[%clk
0:00:23.8]} 38. Be2 {[%clk 0:00:15.7]} 38... Ke7 {[%clk 0:00:22.9]} 39. Kc5
{[%clk 0:00:09.8]} 39... Kf6 {[%clk 0:00:20.6]} 40. d4 {[%clk 0:00:09.2]} 40...
Rc3+ {[%clk 0:00:19.8]} 41. Kb4 {[%clk 0:00:06.3]} 41... Rxc7 {[%clk 0:00:19.9]}
0-1

[Event "*** SCC Grand Prix: Titled Tuesday Blitz"]
[Site "Chess.com"]
[Date "2020.08.11"]
[Round "8"]
[White "AttackSparrow"]
[Black "tylityli"]
[Result "1-0"]
[WhiteElo "2323"]
[BlackElo "2162"]
[TimeControl "180+1"]
[EndTime "11:34:17 PDT"]
[Termination "AttackSparrow won by resignation"]

1. e4 {[%clk 0:01:40.2]} 1... e5 {[%clk 0:02:58]} 2. Nc3 {[%clk 0:01:39.8]} 2...
Nf6 {[%clk 0:02:57.6]} 3. f4 {[%clk 0:01:39]} 3... d5 {[%clk 0:02:57]} 4. fxe5
{[%clk 0:01:39]} 4... Nxe4 {[%clk 0:02:56.9]} 5. Qe2 {[%clk 0:01:39.4]} 5... Bf5
{[%clk 0:02:51.6]} 6. Qb5+ {[%clk 0:01:37.7]} 6... c6 {[%clk 0:02:22.6]} 7. Qxb7
{[%clk 0:01:35]} 7... Qb6 {[%clk 0:02:22]} 8. Qxb6 {[%clk 0:01:31.7]} 8... axb6
{[%clk 0:02:21.8]} 9. Nf3 {[%clk 0:01:28.4]} 9... Nd7 {[%clk 0:02:18.5]} 10. Nd4
{[%clk 0:01:23]} 10... Nxe5 {[%clk 0:02:16]} 11. Nxf5 {[%clk 0:01:22.7]} 11...
g6 {[%clk 0:02:09.2]} 12. Nxe4 {[%clk 0:01:21.5]} 12... dxe4 {[%clk 0:02:04.8]}
13. Ne3 {[%clk 0:01:21.3]} 13... O-O-O {[%clk 0:02:04.3]} 14. a4 {[%clk
0:01:19.8]} 14... f5 {[%clk 0:02:03.6]} 15. a5 {[%clk 0:01:11.2]} 15... b5
{[%clk 0:01:57.6]} 16. a6 {[%clk 0:01:10.1]} 16... Bc5 {[%clk 0:01:56.6]} 17. b4
{[%clk 0:01:06.6]} 17... Bxb4 {[%clk 0:01:52.3]} 18. a7 {[%clk 0:01:02]} 18...
Kb7 {[%clk 0:01:51.2]} 19. Be2 {[%clk 0:00:56.2]} 19... Rhe8 {[%clk 0:01:43.3]}
20. c3 {[%clk 0:00:42]} 20... Bc5 {[%clk 0:01:42.6]} 21. Bb2 {[%clk 0:00:33.8]}
21... Bxa7 {[%clk 0:01:41.3]} 22. Nc2 {[%clk 0:00:28.2]} 22... Bc5 {[%clk
0:01:37.6]} 23. Kd1 {[%clk 0:00:22.5]} 23... f4 {[%clk 0:01:28.9]} 24. Rf1
{[%clk 0:00:16.3]} 24... g5 {[%clk 0:01:28.1]} 25. Kc1 {[%clk 0:00:16]} 25... f3
{[%clk 0:01:25]} 26. gxf3 {[%clk 0:00:16.9]} 26... exf3 {[%clk 0:01:25.1]} 27.
Bxf3 {[%clk 0:00:16.7]} 27... Nd3+ {[%clk 0:01:19.9]} 28. Kb1 {[%clk 0:00:16.8]}
28... Nxb2 {[%clk 0:01:15.2]} 29. Kxb2 {[%clk 0:00:17.7]} 29... Rxd2 {[%clk
0:01:15.6]} 30. Rad1 {[%clk 0:00:16.4]} 30... Rxh2 {[%clk 0:01:11.5]} 31. Rh1
{[%clk 0:00:14.9]} 31... Rxh1 {[%clk 0:00:59.5]} 32. Rxh1 {[%clk 0:00:15.8]}
32... Re7 {[%clk 0:00:59.8]} 33. Rh6 {[%clk 0:00:16.3]} 33... Rc7 {[%clk
0:00:59.6]} 34. Kb3 {[%clk 0:00:14.6]} 34... Bf8 {[%clk 0:00:57.6]} 35. Re6
{[%clk 0:00:12.4]} 35... Bg7 {[%clk 0:00:49.4]} 36. Nb4 {[%clk 0:00:12.4]} 36...
Kc8 {[%clk 0:00:31.8]} 37. Bxc6 {[%clk 0:00:11]} 37... g4 {[%clk 0:00:29.4]} 38.
Nd5 {[%clk 0:00:11.1]} 38... Rxc6 {[%clk 0:00:21.4]} 39. Rxc6+ {[%clk 0:00:12]}
39... Kd7 {[%clk 0:00:22]} 40. Rc7+ {[%clk 0:00:12]} 40... Kd6 {[%clk
0:00:21.6]} 41. Rxg7 {[%clk 0:00:12.9]} 41... Kxd5 {[%clk 0:00:21.7]} 42. Rxg4
{[%clk 0:00:13]} 1-0

[Event "*** SCC Grand Prix: Titled Tuesday Blitz"]
[Site "Chess.com"]
[Date "2020.08.11"]
[Round "8"]
[White "m_ezat"]
[Black "goldihouse"]
[Result "1-0"]
[WhiteElo "2607"]
[BlackElo "2456"]
[TimeControl "180+1"]
[EndTime "11:34:18 PDT"]
[Termination "m_ezat won by resignation"]

1. d4 {[%clk 0:03:00.9]} 1... e6 {[%clk 0:03:00.4]} 2. c4 {[%clk 0:03:01.2]}
2... Nf6 {[%clk 0:03:01]} 3. Nc3 {[%clk 0:03:01.6]} 3... Bb4 {[%clk 0:03:00.3]}
4. e3 {[%clk 0:03:01.1]} 4... b6 {[%clk 0:03:00]} 5. a3 {[%clk 0:03:00.7]} 5...
Bxc3+ {[%clk 0:02:59.3]} 6. bxc3 {[%clk 0:03:01.1]} 6... c5 {[%clk 0:03:00.2]}
7. Bd3 {[%clk 0:03:00.9]} 7... Nc6 {[%clk 0:02:59.8]} 8. Ne2 {[%clk 0:02:59.6]}
8... O-O {[%clk 0:02:59.7]} 9. O-O {[%clk 0:02:59.4]} 9... d6 {[%clk 0:02:57.1]}
10. e4 {[%clk 0:02:59.6]} 10... e5 {[%clk 0:02:57.3]} 11. f3 {[%clk 0:02:57.9]}
11... Ba6 {[%clk 0:02:56.7]} 12. Bg5 {[%clk 0:02:57.6]} 12... h6 {[%clk
0:02:56.3]} 13. Bh4 {[%clk 0:02:58.1]} 13... g5 {[%clk 0:02:56.3]} 14. Bf2
{[%clk 0:02:58.1]} 14... Na5 {[%clk 0:02:55.1]} 15. Ng3 {[%clk 0:02:54.9]} 15...
Bc8 {[%clk 0:02:50.5]} 16. h4 {[%clk 0:02:53.8]} 16... Kg7 {[%clk 0:02:48.5]}
17. Be3 {[%clk 0:02:33.5]} 17... Nh7 {[%clk 0:02:46.2]} 18. Nh5+ {[%clk
0:02:32.7]} 18... Kg6 {[%clk 0:02:46]} 19. g4 {[%clk 0:02:27.9]} 19... f6 {[%clk
0:02:43]} 20. Kg2 {[%clk 0:02:19.1]} 20... Qe8 {[%clk 0:02:35.6]} 21. Rh1 {[%clk
0:02:12.5]} 21... Rh8 {[%clk 0:02:34.8]} 22. Ng3 {[%clk 0:02:01.4]} 22... Be6
{[%clk 0:02:30]} 23. Qe2 {[%clk 0:01:59.7]} 23... Qa4 {[%clk 0:02:28.2]} 24. Rh2
{[%clk 0:01:52.8]} 24... Bxc4 {[%clk 0:02:25.7]} 25. Rah1 {[%clk 0:01:48.5]}
25... Bxd3 {[%clk 0:02:23.8]} 26. Qxd3 {[%clk 0:01:46.1]} 26... Qc4 {[%clk
0:02:24.2]} 27. Qd1 {[%clk 0:01:04.3]} 27... Qxc3 {[%clk 0:02:11.5]} 28. hxg5
{[%clk 0:00:53.5]} 28... Qxe3 {[%clk 0:02:11]} 29. Rxh6+ {[%clk 0:00:51.2]}
29... Kf7 {[%clk 0:01:58.8]} 30. g6+ {[%clk 0:00:50.5]} 30... Ke6 {[%clk
0:01:53.3]} 31. dxe5 {[%clk 0:00:30.9]} 31... Qd4 {[%clk 0:01:32.2]} 32. Nf5
{[%clk 0:00:30.9]} 32... Qxe5 {[%clk 0:01:24.4]} 33. gxh7 {[%clk 0:00:28.8]}
33... Nc4 {[%clk 0:01:18.3]} 34. Qb3 {[%clk 0:00:21.4]} 34... Qb2+ {[%clk
0:01:00.7]} 35. Qxb2 {[%clk 0:00:21.2]} 35... Nxb2 {[%clk 0:01:01.6]} 36. g5
{[%clk 0:00:21.8]} 36... Raf8 {[%clk 0:00:46.6]} 37. g6 {[%clk 0:00:21.6]} 37...
Nc4 {[%clk 0:00:45.3]} 38. g7 {[%clk 0:00:21.5]} 38... Rc8 {[%clk 0:00:46.2]}
39. gxh8=Q {[%clk 0:00:19.3]} 39... Rxh8 {[%clk 0:00:47.1]} 40. Rg6 {[%clk
0:00:19.6]} 40... Ne5 {[%clk 0:00:46]} 41. Rg8 {[%clk 0:00:16.7]} 41... Nf7
{[%clk 0:00:46.9]} 42. Rxh8 {[%clk 0:00:16.7]} 42... Nxh8 {[%clk 0:00:47.8]} 43.
Rd1 {[%clk 0:00:16.5]} 43... d5 {[%clk 0:00:48.7]} 44. Rxd5 {[%clk 0:00:16.2]}
44... Ng6 {[%clk 0:00:49.6]} 45. Kg3 {[%clk 0:00:14.7]} 45... a6 {[%clk
0:00:48.6]} 46. Rd8 {[%clk 0:00:14.3]} 46... b5 {[%clk 0:00:47.4]} 47. Rg8
{[%clk 0:00:14.8]} 1-0

[Event "*** SCC Grand Prix: Titled Tuesday Blitz"]
[Site "Chess.com"]
[Date "2020.08.11"]
[Round "8"]
[White "Heineccius"]
[Black "sorito"]
[Result "1-0"]
[WhiteElo "2599"]
[BlackElo "2454"]
[TimeControl "180+1"]
[EndTime "11:34:18 PDT"]
[Termination "Heineccius won on time"]

1. d4 {[%clk 0:03:00.9]} 1... Nf6 {[%clk 0:02:58.5]} 2. c4 {[%clk 0:03:00.2]}
2... c6 {[%clk 0:02:58.4]} 3. Nf3 {[%clk 0:02:59]} 3... d6 {[%clk 0:02:58.6]} 4.
e3 {[%clk 0:02:59.6]} 4... Nbd7 {[%clk 0:02:58.9]} 5. Nc3 {[%clk 0:02:59.2]}
5... g6 {[%clk 0:02:58.8]} 6. b3 {[%clk 0:02:59.1]} 6... Bg7 {[%clk 0:02:59.7]}
7. Bb2 {[%clk 0:02:59.2]} 7... O-O {[%clk 0:03:00.6]} 8. Be2 {[%clk 0:02:58.4]}
8... e5 {[%clk 0:03:01.5]} 9. O-O {[%clk 0:02:57.8]} 9... Re8 {[%clk 0:03:02.4]}
10. Qc2 {[%clk 0:02:56]} 10... e4 {[%clk 0:03:03.3]} 11. Nd2 {[%clk 0:02:55]}
11... d5 {[%clk 0:03:04.2]} 12. b4 {[%clk 0:02:53.5]} 12... a6 {[%clk
0:03:05.1]} 13. a4 {[%clk 0:02:51.7]} 13... Nf8 {[%clk 0:03:04.4]} 14. b5 {[%clk
0:02:50.7]} 14... h5 {[%clk 0:03:03.4]} 15. Ba3 {[%clk 0:02:33.7]} 15... N8h7
{[%clk 0:03:01.2]} 16. bxc6 {[%clk 0:02:24]} 16... bxc6 {[%clk 0:03:00.6]} 17.
cxd5 {[%clk 0:01:53.5]} 17... cxd5 {[%clk 0:03:01.5]} 18. Rfc1 {[%clk
0:01:51.8]} 18... h4 {[%clk 0:02:58.5]} 19. h3 {[%clk 0:01:41.4]} 19... Ng5
{[%clk 0:02:56.3]} 20. Bf1 {[%clk 0:01:41.7]} 20... Bd7 {[%clk 0:02:19.2]} 21.
Ne2 {[%clk 0:01:41]} 21... Qa5 {[%clk 0:02:06.9]} 22. Qc3 {[%clk 0:01:36.2]}
22... Qb6 {[%clk 0:01:25.9]} 23. Qc5 {[%clk 0:01:21]} 23... Qe6 {[%clk
0:01:21.4]} 24. Qd6 {[%clk 0:01:18.1]} 24... Bxa4 {[%clk 0:01:16.9]} 25. Qxe6
{[%clk 0:01:14.3]} 25... Nxe6 {[%clk 0:01:16.4]} 26. Bd6 {[%clk 0:01:12.5]}
26... Bb5 {[%clk 0:01:16]} 27. Nc3 {[%clk 0:01:11.4]} 27... Bxf1 {[%clk
0:01:15.6]} 28. Kxf1 {[%clk 0:01:11.9]} 28... Bf8 {[%clk 0:01:13.5]} 29. Be5
{[%clk 0:01:11]} 29... Nd7 {[%clk 0:01:09]} 30. Nxd5 {[%clk 0:01:09.3]} 30...
Nxe5 {[%clk 0:01:06.6]} 31. Nf6+ {[%clk 0:01:08.7]} 31... Kh8 {[%clk 0:01:05]}
32. Nxe8 {[%clk 0:00:56.6]} 32... Nd3 {[%clk 0:01:02.3]} 33. Nc7 {[%clk
0:00:56.1]} 33... Rc8 {[%clk 0:00:45.3]} 34. Nxe6 {[%clk 0:00:52.7]} 34... Nxc1
{[%clk 0:00:36.5]} 35. Nxf8 {[%clk 0:00:51.9]} 35... Nd3 {[%clk 0:00:30.2]} 36.
Nd7 {[%clk 0:00:51.6]} 36... f5 {[%clk 0:00:28.9]} 37. Nc5 {[%clk 0:00:49]}
37... Nxc5 {[%clk 0:00:27.9]} 38. Rc1 {[%clk 0:00:48.8]} 38... Ra8 {[%clk
0:00:25.8]} 39. dxc5 {[%clk 0:00:46.8]} 39... a5 {[%clk 0:00:26.7]} 40. c6
{[%clk 0:00:44.9]} 40... a4 {[%clk 0:00:27.6]} 41. c7 {[%clk 0:00:44.7]} 41...
a3 {[%clk 0:00:28.5]} 42. c8=Q+ {[%clk 0:00:43.7]} 42... Rxc8 {[%clk 0:00:29.4]}
43. Rxc8+ {[%clk 0:00:43.3]} 1-0